bitfinex-derivatives/quotes_BTCF0:USTF0_20240820
["timestamp","ask_amount","ask_price","bid_price","bid_amount"]
[1724176907576,0.36359584,59037.0,59036.0,0.074744]
[1724176907778,0.36359584,59037.0,59036.0,0.142489]
[1724176907979,0.43125447,59037.0,59036.0,0.210234]
[1724176908381,0.43125447,59037.0,59036.0,0.074744]
[1724176908382,0.36359584,59037.0,59036.0,0.074744]
[1724176909482,0.43133984,59037.0,59036.0,0.074744]
[1724176909676,0.58133984,59037.0,59036.0,0.074744]
[1724176912581,0.58134001,59037.0,59036.0,0.074744]
[1724176912984,0.58134006,59037.0,59036.0,0.074744]
[1724176914189,1.48950006,59037.0,59024.0,0.11176939]
[1724176914483,0.3608,59027.0,59026.0,0.067757]
[1724176914691,0.36373554,59027.0,59026.0,0.067757]
[1724176915693,0.36373554,59027.0,59026.0,0.135514]
[1724176916285,0.36373554,59027.0,59026.0,0.067757]
[1724176916684,0.36373554,59027.0,59026.0,0.11797236]
[1724176916879,0.36373556,59027.0,59026.0,0.11797236]
[1724176917082,0.36373557,59027.0,59026.0,0.11797236]
[1724176918389,0.36373557,59027.0,59026.0,0.067757]
[1724176918795,0.36373557,59027.0,59026.0,0.069757]
[1724176919788,0.36373557,59027.0,59026.0,0.11997236]
[1724176920390,0.36373557,59027.0,59026.0,0.069757]
[1724176920591,0.36373557,59027.0,59026.0,0.11997236]
[1724176920592,0.36373556,59027.0,59026.0,0.11997236]
[1724176921103,0.36373556,59027.0,59026.0,0.069757]
[1724176921510,0.36373556,59027.0,59026.0,0.11997236]
[1724176921802,0.36373556,59027.0,59026.0,0.069757]
[1724176923403,0.36373557,59027.0,59026.0,0.11997236]
[1724176924000,0.36373557,59027.0,59026.0,0.069757]
[1724176924195,0.36373557,59027.0,59026.0,0.11997236]
[1724176927099,0.00025398,59032.0,59028.0,0.067755]
[1724176927304,0.00025398,59032.0,59031.0,0.428551]
[1724176927501,0.00304978,59032.0,59031.0,4.198551]
[1724176928207,0.0031215,59032.0,59031.0,4.198551]
[1724176928504,0.0031215,59032.0,59031.0,4.200551]
[1724176928894,0.0031215,59032.0,59031.0,4.25076274]
[1724176929099,0.0680757,59032.0,59031.0,0.48076274]
[1724176929296,0.135773,59032.0,59031.0,0.11996274]
[1724176929497,0.135773,59032.0,59031.0,0.069751]
[1724176929498,0.0680757,59032.0,59031.0,0.069751]
[1724176929893,0.13576435,59032.0,59031.0,0.069751]
[1724176930101,0.0680757,59032.0,59031.0,0.069751]
[1724176931997,0.0003257,59032.0,59031.0,0.069751]
[1724176934910,0.0003257,59032.0,59031.0,0.137502]
[1724176936008,0.0003257,59032.0,59031.0,0.069751]
[1724176936206,0.0003257,59032.0,59031.0,0.12000484]
[1724176937012,0.0003257,59032.0,59031.0,0.069751]
[1724176937716,0.0003257,59032.0,59031.0,0.12000484]
[1724176938116,0.0680234,59032.0,59031.0,0.069751]
[1724176938508,0.0003257,59032.0,59031.0,0.12000114]
[1724176938705,0.0680757,59032.0,59031.0,0.12000301]
[1724176938909,0.0680757,59032.0,59031.0,0.05225201]
[1724176939109,0.3058257,59032.0,59031.0,0.002]
[1724176939510,0.3524257,59032.0,59031.0,0.002]
[1724176940112,0.36168275,59032.0,59031.0,0.002]
[1724176941211,1.78798275,59032.0,59021.0,0.05050599]
[1724176941412,0.067761,59022.0,59021.0,0.00025398]
[1724176941612,0.227761,59022.0,59021.0,0.00025398]
[1724176942611,0.227761,59022.0,59021.0,0.00225398]
[1724176943109,0.16,59022.0,59021.0,0.00225398]
[1724176943409,0.34463697,59024.0,59023.0,0.06776]
[1724176943410,0.06766007,59024.0,59023.0,0.06776]
[1724176943619,0.06766007,59026.0,59023.0,0.3608]
[1724176943807,0.06766007,59030.0,59024.0,0.05025201]
[1724176944005,0.06766007,59031.0,59030.0,0.067752]
[1724176944210,0.80330578,59032.0,59031.0,0.067751]
[1724176944519,0.80078577,59032.0,59031.0,0.067751]
[1724176946217,0.75418577,59032.0,59031.0,0.069751]
[1724176946416,0.6865257,59032.0,59031.0,0.069751]
[1724176946618,0.3257257,59032.0,59031.0,0.430551]
[1724176947325,0.0003257,59032.0,59031.0,0.430551]
[1724176949313,0.0003257,59032.0,59031.0,0.43980077]
[1724176951622,0.0003257,59032.0,59031.0,0.48076575]
[1724176952013,0.0003257,59032.0,59031.0,0.3628]
[1724176952412,0.0680757,59032.0,59031.0,0.41302359]
[1724176953226,0.0680757,59032.0,59031.0,0.430551]
[1724176953413,0.0003257,59032.0,59031.0,0.430551]
[1724176954920,0.0003257,59032.0,59031.0,0.498302]
[1724176956026,0.0487,59040.0,59039.0,0.067742]
[1724176956226,0.11636007,59040.0,59039.0,0.067742]
[1724176956524,0.28636007,59040.0,59039.0,0.067742]
[1724176956824,0.2187,59040.0,59039.0,0.067742]
[1724176957224,0.28630018,59040.0,59039.0,0.067742]
[1724176957415,0.06760018,59041.0,59039.0,0.067742]
[1724176957619,0.3608,59044.0,59041.0,0.06774]
[1724176957620,0.06760018,59042.0,59041.0,0.06774]
[1724176958017,0.3608,59044.0,59042.0,0.067739]
[1724176958018,0.06760018,59043.0,59042.0,0.067739]
[1724176959427,0.06760018,59043.0,59042.0,0.068739]
[1724176959737,0.42840018,59044.0,59043.0,0.067737]
[1724176961229,0.05092581,59045.0,59044.0,0.135474]
[1724176961433,0.00025398,59045.0,59044.0,0.135474]
[1724176961640,0.00025398,59045.0,59044.0,0.643554]
[1724176962436,0.00225398,59045.0,59044.0,0.643554]
[1724176962629,0.00225398,59045.0,59044.0,0.65281462]
[1724176963537,0.00325398,59045.0,59044.0,0.65281462]
[1724176963729,0.00325398,59045.0,59044.0,1.12055162]
[1724176963932,0.05067183,59053.0,59052.0,0.067727]
[1724176964139,0.05067183,59055.0,59054.0,0.067725]
[1724176964342,0.05067183,59056.0,59055.0,0.067724]
[1724176965041,0.05067183,59057.0,59056.0,0.067723]
[1724176965239,0.05067183,59057.0,59050.0,0.09465398]
[1724176965240,0.01,59053.0,59052.0,0.136454]
[1724176965431,0.01,59053.0,59052.0,0.429254]
[1724176965635,0.01,59053.0,59052.0,0.428254]
[1724176965835,0.009,59053.0,59052.0,0.428254]
[1724176966046,0.014,59056.0,59055.0,0.067724]
[1724176966342,0.014,59056.0,59055.0,0.496248]
[1724176966545,0.00025398,59061.0,59060.0,0.067718]
[1724176966844,0.00025398,59061.0,59060.0,0.428518]
[1724176968140,0.00025398,59061.0,59060.0,0.430518]
[1724176968339,0.00025398,59061.0,59060.0,0.431518]
[1724176970634,0.00025398,59061.0,59060.0,0.43974636]
[1724176970840,0.00125398,59061.0,59060.0,0.43874636]
[1724176971344,0.00025398,59061.0,59060.0,0.43874636]
[1724176972635,0.00025398,59061.0,59060.0,0.97318236]
[1724176972844,0.03964669,59069.0,59067.0,0.13542]
[1724176973146,0.1008948,59077.0,59076.0,0.0677]
[1724176973450,0.02743056,59077.0,59076.0,0.3608]
[1724176973645,0.10086331,59079.0,59077.0,0.067699]
[1724176973846,0.02743182,59078.0,59077.0,0.067699]
[1724176974347,0.02743222,59078.0,59077.0,0.067699]
[1724176974641,0.100836,59078.0,59077.0,0.067699]
[1724176974842,0.102836,59078.0,59077.0,0.068699]
[1724176975043,0.13026822,59078.0,59077.0,0.068699]
[1724176975838,0.13026822,59078.0,59077.0,0.069699]
[1724176976038,0.13026822,59078.0,59077.0,0.068699]
[1724176976039,0.12826822,59078.0,59077.0,0.068699]
[1724176976241,0.19796622,59078.0,59077.0,0.002]
[1724176976639,0.20396622,59078.0,59077.0,0.002]
[1724176978250,0.073698,59078.0,59077.0,0.069698]
[1724176978444,0.076698,59078.0,59077.0,0.069698]
[1724176979250,0.070698,59078.0,59077.0,0.068698]
[1724176979448,0.082698,59078.0,59077.0,0.069698]
[1724176979952,0.015,59078.0,59077.0,0.069698]
[1724176980252,0.015,59078.0,59077.0,0.137396]
[1724176980938,0.015,59078.0,59077.0,0.069698]
[1724176982345,0.132397,59078.0,59077.0,0.002]
[1724176982544,0.132397,59078.0,59074.0,0.067702]
[1724176982545,0.067704,59073.0,59071.0,0.067704]
[1724176982745,0.0461,59072.0,59071.0,0.067704]
[1724176982950,0.067706,59071.0,59067.0,0.00025398]
[1724176983457,0.0461,59072.0,59070.0,0.067706]
[1724176983645,0.0461,59072.0,59071.0,0.001]
[1724176983850,0.113804,59072.0,59071.0,0.001]
[1724176984451,0.117804,59072.0,59071.0,0.001]
[1724176984749,0.117804,59072.0,59071.0,0.068705]
[1724176986253,0.12703277,59072.0,59071.0,0.068705]
[1724176986644,0.13303277,59072.0,59071.0,0.069705]
[1724176987353,0.16146778,59072.0,59071.0,0.069705]
[1724176987652,0.26230378,59072.0,59071.0,0.069705]
[1724176988052,0.25530378,59072.0,59071.0,0.068705]
[1724176988248,0.41430378,59072.0,59071.0,0.069705]
[1724176988451,0.30946778,59072.0,59071.0,0.068705]
[1724176988648,0.31346778,59072.0,59071.0,0.069705]
[1724176989845,0.31346778,59072.0,59071.0,0.002]
[1724176990243,0.16346778,59072.0,59071.0,0.002]
[1724176990443,0.19615551,59072.0,59071.0,0.002]
[1724176991049,0.19615551,59072.0,59071.0,0.069705]
[1724176991448,0.19615551,59072.0,59071.0,0.002]
[1724176991651,0.067712,59065.0,59052.0,0.067726]
[1724176991852,0.16893137,59061.0,59060.0,0.067718]
[1724176992153,0.16893137,59061.0,59057.0,0.067721]
[1724176992154,0.067723,59058.0,59057.0,0.067721]
[1724176992358,0.09516157,59058.0,59057.0,0.067721]
[1724176992551,0.12785439,59058.0,59057.0,0.067721]
[1724176993352,0.0771863,59058.0,59057.0,0.067721]
[1724176993552,0.0741863,59058.0,59057.0,0.067721]
[1724176994155,0.0741863,59058.0,59057.0,0.070721]
[1724176994951,0.0741863,59058.0,59057.0,0.074721]
[1724176995861,0.12480448,59058.0,59057.0,0.074721]
[1724176997454,0.0741863,59058.0,59057.0,0.074721]
[1724176999955,0.05061818,59061.0,59060.0,0.067718]
[1724177000259,0.00025398,59063.0,59062.0,0.067716]
[1724177001154,0.00025398,59063.0,59062.0,0.711068]
[1724177001367,0.00025398,59063.0,59062.0,1.071868]
[1724177001867,0.0495,59075.0,59074.0,0.067702]
[1724177001868,0.05061818,59075.0,59074.0,0.067702]
[1724177002053,0.05059176,59076.0,59075.0,0.067701]
[1724177002258,0.067699,59077.0,59075.0,0.067701]
[1724177004160,0.05059176,59078.0,59077.0,0.067699]
[1724177004362,0.37425398,59082.0,59079.0,0.067696]
[1724177004363,0.05059176,59080.0,59079.0,0.067696]
[1724177004559,0.32565398,59082.0,59080.0,0.067695]
[1724177004560,0.05059176,59081.0,59080.0,0.067695]
[1724177005264,0.05059176,59081.0,59075.0,0.002]
[1724177005265,0.37624574,59082.0,59081.0,0.067694]
[1724177005464,0.37623889,59082.0,59081.0,0.067694]
[1724177005855,0.32565398,59082.0,59081.0,0.067694]
[1724177006568,0.00025398,59082.0,59081.0,0.067694]
[1724177007467,0.01425398,59082.0,59081.0,0.068694]
[1724177007663,0.02225398,59082.0,59081.0,0.069694]
[1724177008363,0.04968333,59082.0,59081.0,0.069694]
[1724177008559,0.08236233,59082.0,59081.0,0.069694]
[1724177009769,0.15005533,59082.0,59081.0,0.069694]
[1724177010459,0.15005898,59082.0,59081.0,0.069694]
[1724177013675,0.30005898,59082.0,59081.0,0.069694]
[1724177013965,0.30006004,59082.0,59081.0,0.002]
[1724177014166,0.067705,59072.0,59071.0,0.067704]
[1724177014368,0.12781806,59072.0,59071.0,0.067704]
[1724177015468,0.13281806,59072.0,59071.0,0.068704]
[1724177016175,0.06511306,59072.0,59071.0,0.068704]
[1724177016475,0.005,59072.0,59071.0,0.068704]
[1724177016771,0.011,59072.0,59071.0,0.069704]
[1724177020072,0.007,59072.0,59071.0,0.723304]
[1724177020371,0.007,59072.0,59071.0,1.298849]
[1724177020676,0.007,59072.0,59071.0,5.068849]
[1724177020869,0.00979363,59072.0,59071.0,5.068849]
[1724177021067,0.00979363,59072.0,59071.0,5.001144]
[1724177021264,0.00979362,59072.0,59071.0,5.001144]
[1724177021577,0.00979362,59072.0,59071.0,5.068849]
[1724177021777,0.00979362,59072.0,59071.0,5.001144]
[1724177021974,0.00979362,59072.0,59071.0,5.068849]
[1724177022284,0.00979362,59072.0,59071.0,5.001144]
[1724177022973,0.00979362,59072.0,59071.0,5.068849]
[1724177023377,0.00979362,59072.0,59071.0,5.001144]
[1724177023980,0.00279362,59072.0,59071.0,5.073849]
[1724177024481,0.00279362,59072.0,59071.0,5.070849]
[1724177024671,0.00279362,59072.0,59071.0,5.535554]
[1724177024872,0.00025398,59082.0,59081.0,0.067694]
[1724177025279,0.06741666,59088.0,59081.0,0.067694]
[1724177025280,0.05056249,59089.0,59081.0,0.975454]
[1724177025482,0.41136249,59096.0,59089.0,0.2928]
[1724177025683,0.06741666,59100.0,59099.0,0.067673]
[1724177025987,0.05055827,59100.0,59099.0,0.067673]
[1724177026477,0.05055827,59101.0,59099.0,0.067673]
[1724177026682,0.05055827,59100.0,59099.0,0.067673]
[1724177026986,0.05055827,59100.0,59097.0,0.067675]
[1724177027282,0.05055827,59100.0,59096.0,3.77]
[1724177027283,0.05055827,59100.0,59098.0,0.067674]
[1724177027481,0.04955827,59099.0,59098.0,0.067674]
[1724177027777,0.04955827,59099.0,59095.0,0.3608]
[1724177027778,0.04855827,59099.0,59095.0,0.3608]
[1724177027974,0.070672,59100.0,59095.0,0.3608]
[1724177028174,0.070672,59100.0,59095.0,4.1308]
[1724177028980,0.067673,59099.0,59097.0,0.067675]
[1724177029283,0.067676,59097.0,59081.0,0.428494]
[1724177029580,0.06769,59085.0,59081.0,0.3608]
[1724177029887,0.3608,59088.0,59081.0,0.3608]
[1724177030079,0.3608,59090.0,59089.0,0.067685]
[1724177030277,0.3608,59090.0,59081.0,0.3608]
[1724177030278,0.1341186,59092.0,59090.0,0.067683]
[1724177030476,0.428482,59091.0,59090.0,0.067683]
[1724177030683,0.067685,59089.0,59084.0,0.00025398]
[1724177030879,0.067686,59088.0,59087.0,0.067686]
[1724177031070,0.067689,59085.0,59084.0,0.00025398]
[1724177031471,0.12779508,59085.0,59084.0,0.00025398]
[1724177031676,0.21209423,59085.0,59084.0,0.06794398]
[1724177031877,0.24477199,59085.0,59084.0,0.06794398]
[1724177032984,0.24477199,59085.0,59084.0,0.00025398]
[1724177033180,0.12679508,59085.0,59084.0,0.00025398]
[1724177033387,0.13279508,59085.0,59084.0,0.00025398]
[1724177033685,0.13279508,59085.0,59076.0,0.067699]
[1724177033686,0.067698,59078.0,59076.0,0.067699]
[1724177033885,0.12781075,59077.0,59073.0,0.067703]
[1724177034186,0.05911275,59076.0,59072.0,0.3608]
[1724177034392,0.05811275,59075.0,59074.0,0.067702]
[1724177034684,0.03268139,59075.0,59074.0,0.067702]
[1724177035187,0.068698,59077.0,59075.0,0.067701]
[1724177035388,0.03268236,59076.0,59075.0,0.067701]
[1724177035888,0.03268236,59076.0,59075.0,0.643242]
[1724177036187,0.002,59077.0,59076.0,0.067699]
[1724177036395,0.002,59077.0,59076.0,0.135399]
[1724177036685,0.10219789,59077.0,59076.0,1.403999]
[1724177036888,0.001,59077.0,59076.0,1.403999]
[1724177037088,0.10145187,59080.0,59079.0,0.135392]
[1724177037290,0.00025398,59080.0,59079.0,0.963888]
[1724177037591,0.00025398,59080.0,59079.0,1.471688]
[1724177038597,0.00025398,59080.0,59079.0,1.52178008]
[1724177038788,0.00025398,59080.0,59079.0,1.071688]
[1724177038996,0.00025398,59080.0,59079.0,1.52478008]
[1724177039488,0.00025398,59080.0,59079.0,1.474688]
[1724177039983,0.00025398,59080.0,59079.0,1.074688]
[1724177040185,0.00025398,59080.0,59079.0,1.008992]
[1724177040379,0.00025398,59080.0,59079.0,4.711296]
[1724177040584,0.00025398,59080.0,59079.0,4.25344951]
[1724177040793,0.00225398,59080.0,59079.0,4.25144951]
[1724177041087,0.00225398,59080.0,59079.0,0.431496]
[1724177041396,0.00225398,59080.0,59079.0,0.070696]
[1724177042294,0.00425398,59080.0,59079.0,0.067696]
[1724177043089,0.00625398,59080.0,59079.0,0.067696]
[1724177043992,0.00625398,59080.0,59079.0,1.043192]
[1724177044296,0.00625398,59080.0,59079.0,1.05270555]
[1724177044989,0.00725398,59080.0,59079.0,1.05270555]
[1724177045190,0.00725398,59080.0,59079.0,0.58500955]
[1724177045698,0.00425398,59080.0,59079.0,1.05270555]
[1724177045896,0.00625398,59080.0,59079.0,1.10265906]
[1724177046284,0.00225398,59080.0,59079.0,1.10265906]
[1724177046487,0.00425398,59080.0,59079.0,1.05270555]
[1724177046891,0.3706,59090.0,59089.0,0.067685]
[1724177048203,0.3836,59090.0,59089.0,0.068685]
[1724177048409,0.0582,59090.0,59089.0,0.068685]
[1724177049901,0.0632,59090.0,59089.0,0.069685]
[1724177050402,0.018,59090.0,59089.0,0.430485]
[1724177052509,0.085683,59090.0,59089.0,0.3628]
[1724177052709,0.085683,59090.0,59089.0,0.002]
[1724177052911,0.153366,59090.0,59089.0,0.002]
[1724177053515,0.16296755,59090.0,59089.0,0.002]
[1724177053719,0.085683,59090.0,59089.0,0.002]
[1724177054217,0.085683,59090.0,59089.0,0.069684]
[1724177059004,0.018,59090.0,59089.0,0.069684]
[1724177059203,0.018,59090.0,59089.0,0.137368]
[1724177060118,0.018,59090.0,59089.0,0.069684]
[1724177061511,0.018,59090.0,59089.0,0.430484]
[1724177061715,0.018,59090.0,59089.0,0.498168]
[1724177061905,0.018,59090.0,59089.0,0.50780412]
[1724177062112,0.018,59090.0,59089.0,1.41552412]
[1724177062621,0.018,59090.0,59089.0,5.18552412]
[1724177063014,0.018,59090.0,59089.0,5.25320812]
[1724177063313,0.018,59090.0,59089.0,5.2355951]
[1724177064210,0.018,59090.0,59089.0,5.18552412]
[1724177067213,0.02032081,59090.0,59089.0,5.18552412]
[1724177068214,0.02032081,59090.0,59089.0,5.25320812]
[1724177068518,0.02032081,59090.0,59089.0,5.18552412]
[1724177068720,0.02032081,59090.0,59089.0,5.25320812]
[1724177068916,0.02032081,59090.0,59089.0,5.49016812]
[1724177069219,0.00025398,59095.0,59094.0,0.135358]
[1724177069417,0.00025398,59095.0,59094.0,0.856637]
[1724177069608,0.00025398,59095.0,59094.0,1.764317]
[1724177069808,0.00025398,59095.0,59094.0,5.534317]
[1724177070120,0.00025398,59095.0,59094.0,5.60103775]
[1724177070310,0.00025398,59095.0,59094.0,5.534317]
[1724177070618,0.00525398,59095.0,59094.0,5.60203775]
[1724177070813,0.00525398,59095.0,59094.0,5.685317]
[1724177071018,0.00525398,59095.0,59094.0,5.75203775]
[1724177071421,0.00525398,59095.0,59094.0,5.535317]
[1724177072119,0.00525398,59095.0,59094.0,5.74760837]
[1724177072321,0.00525398,59095.0,59094.0,5.535317]
[1724177072618,0.00825398,59095.0,59094.0,5.535317]
[1724177072818,0.00325398,59095.0,59094.0,5.534317]
[1724177073514,0.00325398,59095.0,59094.0,5.134317]
[1724177073720,0.00325398,59095.0,59094.0,5.066638]
[1724177074020,0.00325398,59095.0,59094.0,4.503118]
[1724177074823,0.00325398,59095.0,59094.0,4.863597]
[1724177075208,0.00325398,59095.0,59094.0,5.771277]
[1724177077110,0.00325398,59095.0,59094.0,5.703598]
[1724177078618,0.00325398,59095.0,59094.0,5.771277]
[1724177079423,0.00325398,59095.0,59094.0,5.371277]
[1724177079821,0.00325398,59095.0,59094.0,5.303598]
[1724177080017,0.00325398,59095.0,59094.0,5.371277]
[1724177081026,0.00325398,59095.0,59094.0,5.771277]
[1724177083220,0.00325398,59095.0,59094.0,5.83790724]
[1724177083524,0.00325398,59095.0,59094.0,6.00790724]
[1724177084228,0.00325398,59095.0,59094.0,6.008956]
[1724177085323,0.00325398,59095.0,59094.0,5.941277]
[1724177085627,0.00325398,59095.0,59094.0,6.008956]
[1724177086319,0.00325398,59095.0,59094.0,5.941277]
[1724177086520,0.00325398,59095.0,59094.0,6.008956]
[1724177087325,0.0497,59112.0,59094.0,6.008956]
[1724177087326,0.0497,59112.0,59111.0,0.135318]
[1724177087626,0.0497,59112.0,59111.0,0.496118]
[1724177088324,0.0497,59112.0,59111.0,0.135318]
[1724177088530,0.36105246,59117.0,59116.0,0.067654]
[1724177088925,0.36105246,59117.0,59116.0,3.837654]
[1724177090726,0.36484447,59117.0,59116.0,3.838654]
[1724177091121,0.93979494,59117.0,59116.0,0.002]
[1724177091329,0.87232446,59117.0,59116.0,0.002]
[1724177091526,0.36484446,59117.0,59116.0,0.002]
[1724177091924,0.43249646,59117.0,59116.0,0.002]
[1724177092128,0.36484446,59117.0,59116.0,0.069654]
[1724177092333,0.43233042,59117.0,59116.0,0.069654]
[1724177092627,0.00404446,59117.0,59116.0,0.137308]
[1724177093019,0.00404446,59117.0,59116.0,0.790908]
[1724177093233,0.00404446,59117.0,59116.0,0.858562]
[1724177093528,0.00404411,59117.0,59116.0,1.766042]
[1724177094125,0.00404411,59117.0,59116.0,1.77567338]
[1724177094434,0.00404411,59117.0,59116.0,1.86617338]
[1724177094634,0.42828596,59128.0,59127.0,0.067641]
[1724177094930,0.00279146,59128.0,59127.0,0.789241]
[1724177095329,0.0978,59137.0,59134.0,0.067632]
[1724177095633,0.00279088,59136.0,59135.0,0.428432]
[1724177096730,0.0969,59146.0,59139.0,0.067626]
[1724177096930,0.00279071,59145.0,59140.0,0.067625]
[1724177097126,0.00279071,59144.0,59135.0,0.37039683]
[1724177097333,0.0479,59146.0,59145.0,0.06762]
[1724177097529,0.0506907,59146.0,59145.0,0.06762]
[1724177097935,0.0506907,59146.0,59135.0,0.37239683]
[1724177097936,0.0506907,59146.0,59141.0,0.067625]
[1724177098141,0.0027907,59145.0,59141.0,0.067625]
[1724177098332,0.0027907,59144.0,59141.0,0.067625]
[1724177098632,0.0027907,59143.0,59135.0,0.37239683]
[1724177098839,0.0479,59146.0,59135.0,0.37239683]
[1724177098840,0.11807768,59140.0,59135.0,0.37239683]
[1724177099036,0.04371287,59139.0,59138.0,0.067628]
[1724177100032,0.04271287,59139.0,59138.0,0.360428]
[1724177100234,0.04171287,59139.0,59138.0,0.867708]
[1724177100435,0.04616609,59139.0,59138.0,0.867708]
[1724177100634,0.04616609,59139.0,59138.0,0.868708]
[1724177100940,0.04616609,59139.0,59138.0,0.869708]
[1724177101237,0.04616609,59139.0,59138.0,0.362428]
[1724177101436,0.01352,59139.0,59138.0,0.069628]
[1724177101636,0.01352,59139.0,59138.0,0.068628]
[1724177101935,0.01352,59139.0,59135.0,0.37039683]
[1724177101936,0.88439058,59139.0,59135.0,0.067631]
[1724177102132,0.12924859,59138.0,59133.0,0.067633]
[1724177102328,0.00279094,59137.0,59134.0,0.067633]
[1724177102531,0.00279104,59136.0,59133.0,0.067634]
[1724177102737,0.15072627,59137.0,59130.0,0.00025376]
[1724177102738,0.03543963,59135.0,59130.0,0.00025376]
[1724177102930,0.3608,59131.0,59130.0,0.00025376]
[1724177103135,0.39623963,59131.0,59130.0,0.00025376]
[1724177103732,0.39244859,59131.0,59130.0,0.00025376]
[1724177104041,0.39144859,59131.0,59130.0,0.06789076]
[1724177104752,0.39144859,59131.0,59130.0,0.06889076]
[1724177105036,0.001,59131.0,59130.0,0.06989076]
[1724177105240,0.10176314,59131.0,59130.0,0.07950275]
[1724177105938,0.001,59131.0,59130.0,0.07950275]
[1724177106738,0.001,59131.0,59130.0,0.06989076]
[1724177107635,0.001,59131.0,59130.0,3.83989076]
[1724177109233,0.37432,59139.0,59138.0,0.067628]
[1724177110437,0.37432,59139.0,59138.0,0.068628]
[1724177110438,0.37532,59139.0,59138.0,0.068628]
[1724177110643,0.37732,59139.0,59138.0,0.069628]
[1724177111142,0.37732,59139.0,59138.0,0.07931788]
[1724177111545,0.01652,59139.0,59138.0,0.07931788]
[1724177113135,0.01652,59139.0,59138.0,0.14694588]
[1724177113335,0.01652,59139.0,59138.0,0.07931788]
[1724177113741,0.01652,59139.0,59138.0,3.84931788]
[1724177119245,0.01552,59139.0,59138.0,3.84931788]
[1724177119444,0.01552,59139.0,59138.0,3.91694588]
[1724177119850,0.01552,59139.0,59138.0,3.84931788]
[1724177121352,0.01552,59139.0,59138.0,3.91694588]
[1724177124047,0.01552,59139.0,59138.0,3.96690249]
[1724177124253,1e-06,59139.0,59138.0,5.05185388]
[1724177124448,1e-06,59139.0,59138.0,4.95948188]
[1724177124656,1e-06,59139.0,59138.0,4.95849213]
[1724177124952,1e-06,59139.0,59138.0,4.55849213]
[1724177126055,0.013521,59139.0,59138.0,4.55849213]
[1724177126347,0.013521,59139.0,59138.0,4.49085388]
[1724177126548,0.01352,59139.0,59138.0,4.49185388]
[1724177128251,0.01352,59139.0,59138.0,3.98457388]
[1724177128451,0.01352,59139.0,59138.0,4.03446882]
[1724177128745,0.01352,59139.0,59138.0,4.54174882]
[1724177128948,0.01352,59139.0,59138.0,4.49185388]
[1724177129758,0.01352,59139.0,59138.0,4.55836888]
[1724177129951,0.01352,59139.0,59138.0,4.49185388]
[1724177131163,1e-06,59139.0,59138.0,4.49185388]
[1724177131360,1e-06,59139.0,59138.0,4.55948188]
[1724177131855,1e-06,59139.0,59138.0,5.11948188]
[1724177132250,1e-06,59139.0,59138.0,5.05185388]
[1724177132655,1e-06,59139.0,59138.0,4.89185388]
[1724177133359,1e-06,59139.0,59138.0,4.49185388]
[1724177134247,0.046,59152.0,59151.0,0.067614]
[1724177134452,0.046,59152.0,59151.0,0.721214]
[1724177134852,0.046,59152.0,59151.0,0.788828]
[1724177135654,0.046,59152.0,59151.0,0.83870477]
[1724177136054,0.046,59152.0,59151.0,4.60970477]
[1724177137256,0.046,59152.0,59151.0,4.560828]
[1724177137657,0.0465,59161.0,59160.0,0.067603]
[1724177137852,0.0465,59161.0,59160.0,0.428403]
[1724177139661,0.0465,59161.0,59160.0,0.395523]
[1724177139960,0.0465,59161.0,59160.0,0.396523]
[1724177141057,0.0465,59161.0,59160.0,0.40596645]
[1724177141651,0.0459,59163.0,59162.0,0.067601]
[1724177142761,0.05942,59163.0,59162.0,0.068601]
[1724177143766,0.05942,59163.0,59162.0,0.069601]
[1724177145663,0.05942,59163.0,59162.0,0.068601]
[1724177145968,0.05942,59163.0,59162.0,0.072601]
[1724177146464,0.05942,59163.0,59156.0,0.11743936]
[1724177146465,0.067602,59161.0,59153.0,0.04983236]
[1724177146664,0.3608,59157.0,59151.0,0.428413]
[1724177146867,0.049,59156.0,59155.0,0.067609]
[1724177147166,0.046,59156.0,59155.0,0.067609]
[1724177148061,0.09753248,59160.0,59159.0,0.067604]
[1724177148260,0.047,59160.0,59159.0,0.067604]
[1724177149161,0.047,59160.0,59159.0,0.07457162]
[1724177149359,0.05942,59163.0,59162.0,0.067601]
[1724177149861,0.05942,59163.0,59162.0,3.837601]
[1724177150266,0.05942,59163.0,59162.0,3.84456862]
[1724177151061,0.06242,59163.0,59162.0,3.84556862]
[1724177151570,0.06542,59163.0,59162.0,3.84656862]
[1724177152271,0.06242,59163.0,59162.0,3.84556862]
[1724177152461,0.06542,59163.0,59162.0,3.84656862]
[1724177153064,0.06542,59163.0,59162.0,3.84556862]
[1724177153270,0.06742,59163.0,59162.0,3.84656862]
[1724177153769,0.11797932,59163.0,59162.0,3.84656862]
[1724177153972,0.02152,59163.0,59162.0,3.84656862]
[1724177154161,0.04063754,59175.0,59162.0,4.44604762]
[1724177154367,0.04063754,59178.0,59174.0,0.067587]
[1724177154666,0.0465,59186.0,59183.0,0.067576]
[1724177154667,0.11387667,59186.0,59183.0,0.067576]
[1724177154870,0.0465,59186.0,59185.0,0.067575]
[1724177155365,0.0465,59186.0,59185.0,0.07454262]
[1724177156967,0.067566,59193.0,59185.0,0.00796762]
[1724177157171,0.067566,59193.0,59189.0,0.06757]
[1724177157368,0.0486,59195.0,59189.0,0.00696762]
[1724177157564,0.3608,59196.0,59194.0,0.067564]
[1724177157872,0.3608,59196.0,59192.0,0.2928]
[1724177157873,0.10106501,59218.0,59193.0,0.3608]
[1724177158064,0.067538,59217.0,59216.0,0.3608]
[1724177158260,0.0465,59220.0,59216.0,0.36776762]
[1724177158463,0.067538,59218.0,59216.0,0.36776762]
[1724177159063,0.0465,59220.0,59216.0,0.36776762]
[1724177159260,0.0486,59217.0,59216.0,0.36776762]
[1724177159465,0.04163238,59217.0,59216.0,0.3608]
[1724177159664,0.0471,59225.0,59216.0,0.3618]
[1724177159861,0.3608,59231.0,59223.0,0.3608]
[1724177160064,0.0495,59230.0,59223.0,0.3608]
[1724177160365,0.06753,59225.0,59221.0,0.00025328]
[1724177160562,0.0495,59230.0,59222.0,0.3608]
[1724177160974,0.0069,59229.0,59222.0,0.3608]